[Event "*** SCC Grand Prix: Titled Tuesday Blitz"]
[Site "Chess.com"]
[Date "2020.06.23"]
[Round "2"]
[White "QueenOfTactics90"]
[Black "Aleksandar-Topalov"]
[Result "0-1"]
[WhiteElo "1937"]
[BlackElo "2370"]
[TimeControl "180+1"]
[EndTime "10:18:36 PDT"]
[Termination "Aleksandar-Topalov won on time"]

1. e4 {[%clk 0:03:00.9]} 1... e6 {[%clk 0:02:59.9]} 2. Qe2 {[%clk 0:03:00.3]}
2... c5 {[%clk 0:02:58.7]} 3. Nf3 {[%clk 0:02:56.8]} 3... Nc6 {[%clk 0:02:58.2]}
4. g3 {[%clk 0:02:56.6]} 4... Be7 {[%clk 0:02:58.5]} 5. Bg2 {[%clk 0:02:55.8]}
5... d5 {[%clk 0:02:58.7]} 6. e5 {[%clk 0:02:55.5]} 6... Nh6 {[%clk 0:02:57.7]}
7. c3 {[%clk 0:02:53.5]} 7... Nf5 {[%clk 0:02:57.7]} 8. d3 {[%clk 0:02:51.6]}
8... O-O {[%clk 0:02:57]} 9. O-O {[%clk 0:02:41.4]} 9... b5 {[%clk 0:02:55.7]}
10. Na3 {[%clk 0:02:25.3]} 10... b4 {[%clk 0:02:52]} 11. Nc2 {[%clk 0:02:25.4]}
11... a5 {[%clk 0:02:51.6]} 12. Bf4 {[%clk 0:02:20.9]} 12... a4 {[%clk
0:02:49.4]} 13. h4 {[%clk 0:01:58.1]} 13... a3 {[%clk 0:02:48.3]} 14. bxa3
{[%clk 0:01:49.4]} 14... bxc3 {[%clk 0:02:48.5]} 15. h5 {[%clk 0:01:47.7]} 15...
Ncd4 {[%clk 0:02:48.1]} 16. Ncxd4 {[%clk 0:01:45]} 16... Nxd4 {[%clk 0:02:43.4]}
17. Nxd4 {[%clk 0:01:44.3]} 17... cxd4 {[%clk 0:02:43.4]} 18. h6 {[%clk
0:01:42.7]} 18... g6 {[%clk 0:02:42.9]} 19. Rab1 {[%clk 0:01:36.9]} 19... Rxa3
{[%clk 0:02:42.6]} 20. Bc1 {[%clk 0:01:29.2]} 20... Ra4 {[%clk 0:02:37.9]} 21.
f4 {[%clk 0:01:28.6]} 21... Qa5 {[%clk 0:02:37.1]} 22. Rf2 {[%clk 0:01:28]}
22... Ba6 {[%clk 0:02:33.8]} 23. Qc2 {[%clk 0:01:22]} 23... Rc8 {[%clk
0:02:18.1]} 24. g4 {[%clk 0:01:16.7]} 24... Bh4 {[%clk 0:01:54]} 25. Re2 {[%clk
0:01:11.7]} 25... Bg3 {[%clk 0:01:39.3]} 26. f5 {[%clk 0:01:01.4]} 26... Rb4
{[%clk 0:01:02.7]} 27. fxg6 {[%clk 0:00:39.5]} 27... fxg6 {[%clk 0:01:01.8]} 28.
a3 {[%clk 0:00:18]} 28... Rxb1 {[%clk 0:01:01]} 29. Qxb1 {[%clk 0:00:18.3]}
29... Qb5 {[%clk 0:01:01.4]} 30. Qc2 {[%clk 0:00:16]} 30... Qxd3 {[%clk
0:00:57.9]} 31. Qxd3 {[%clk 0:00:16.9]} 31... Bxd3 {[%clk 0:00:57.4]} 32. Ra2
{[%clk 0:00:14.3]} 32... Rb8 {[%clk 0:00:54.2]} 33. Ra1 {[%clk 0:00:11.2]} 33...
Bxe5 {[%clk 0:00:50.6]} 34. Kf2 {[%clk 0:00:09.7]} 34... Be4 {[%clk 0:00:47]}
35. Bf1 {[%clk 0:00:09]} 35... d3 {[%clk 0:00:46.7]} 36. Ke3 {[%clk 0:00:08.2]}
36... d2 {[%clk 0:00:45.7]} 37. Bxd2 {[%clk 0:00:07.7]} 37... cxd2 {[%clk
0:00:46.1]} 38. Kxd2 {[%clk 0:00:08.2]} 38... Rb2+ {[%clk 0:00:44]} 39. Ke1
{[%clk 0:00:04.8]} 39... Bg3+ {[%clk 0:00:42.9]} 40. Kd1 {[%clk 0:00:04.8]}
40... Bf4 {[%clk 0:00:37.7]} 41. Ba6 {[%clk 0:00:02]} 41... Bf3+ {[%clk
0:00:36.7]} 42. Ke1 {[%clk 0:00:01.8]} 42... Rh2 {[%clk 0:00:36.4]} 0-1

[Event "*** SCC Grand Prix: Titled Tuesday Blitz"]
[Site "Chess.com"]
[Date "2020.06.23"]
[Round "2"]
[White "DenLaz"]
[Black "Djager97"]
[Result "1-0"]
[WhiteElo "2705"]
[BlackElo "2472"]
[TimeControl "180+1"]
[EndTime "10:18:37 PDT"]
[Termination "DenLaz won by resignation"]

1. d4 {[%clk 0:03:00.9]} 1... Nf6 {[%clk 0:02:59.2]} 2. c4 {[%clk 0:02:58.1]}
2... c5 {[%clk 0:02:59.1]} 3. d5 {[%clk 0:02:57.6]} 3... d6 {[%clk 0:02:59.6]}
4. Nc3 {[%clk 0:02:57.2]} 4... g6 {[%clk 0:03:00]} 5. g3 {[%clk 0:02:55.3]} 5...
Bg7 {[%clk 0:03:00]} 6. Bg2 {[%clk 0:02:55.8]} 6... O-O {[%clk 0:03:00.2]} 7.
Nf3 {[%clk 0:02:55.7]} 7... e6 {[%clk 0:03:00.2]} 8. O-O {[%clk 0:02:53]} 8...
exd5 {[%clk 0:03:00]} 9. cxd5 {[%clk 0:02:53.9]} 9... a6 {[%clk 0:02:54.1]} 10.
a4 {[%clk 0:02:52]} 10... Nbd7 {[%clk 0:02:54.7]} 11. Nd2 {[%clk 0:02:52.2]}
11... Nh5 {[%clk 0:02:25.6]} 12. Nce4 {[%clk 0:02:23.9]} 12... Ne5 {[%clk
0:02:04.8]} 13. f4 {[%clk 0:02:12.7]} 13... Ng4 {[%clk 0:02:02.3]} 14. Nc4
{[%clk 0:02:13.1]} 14... f5 {[%clk 0:01:49.1]} 15. Nexd6 {[%clk 0:02:07.6]}
15... Bd4+ {[%clk 0:01:49.4]} 16. Kh1 {[%clk 0:01:51.8]} 16... Rf6 {[%clk
0:01:43.9]} 17. Nxc8 {[%clk 0:01:50.4]} 17... Qf8 {[%clk 0:01:26.6]} 18. e3
{[%clk 0:01:21]} 18... Nxg3+ {[%clk 0:01:07.6]} 19. Kg1 {[%clk 0:01:20.1]} 19...
Nxf1 {[%clk 0:00:53.4]} 20. Qxf1 {[%clk 0:01:18.5]} 20... Rxc8 {[%clk
0:00:40.1]} 21. exd4 {[%clk 0:01:16.1]} 21... cxd4 {[%clk 0:00:41]} 22. h3
{[%clk 0:01:08.8]} 22... Qb4 {[%clk 0:00:26.3]} 23. hxg4 {[%clk 0:00:56.7]}
23... Rxc4 {[%clk 0:00:25.7]} 24. Bd2 {[%clk 0:00:50.2]} 24... Qxd2 {[%clk
0:00:16.7]} 25. Qxc4 {[%clk 0:00:48.1]} 25... Qe3+ {[%clk 0:00:17.4]} 26. Kh1
{[%clk 0:00:41.2]} 26... Qxf4 {[%clk 0:00:09.8]} 27. Qc1 {[%clk 0:00:09.7]}
27... Qxg4 {[%clk 0:00:08.6]} 28. d6 {[%clk 0:00:08.6]} 28... Qh4+ {[%clk
0:00:04.4]} 29. Kg1 {[%clk 0:00:08]} 29... Qf4 {[%clk 0:00:01.8]} 30. Qxf4
{[%clk 0:00:06.8]} 1-0

[Event "*** SCC Grand Prix: Titled Tuesday Blitz"]
[Site "Chess.com"]
[Date "2020.06.23"]
[Round "2"]
[White "antoszu"]
[Black "GMBenjaminBok"]
[Result "0-1"]
[WhiteElo "2548"]
[BlackElo "2844"]
[TimeControl "180+1"]
[EndTime "10:18:38 PDT"]
[Termination "GMBenjaminBok won by resignation"]

1. d4 {[%clk 0:03:00.9]} 1... Nf6 {[%clk 0:02:59.5]} 2. c4 {[%clk 0:03:00.9]}
2... e6 {[%clk 0:02:59.7]} 3. Nf3 {[%clk 0:03:00.3]} 3... d5 {[%clk 0:02:59.9]}
4. Nc3 {[%clk 0:03:00.1]} 4... c6 {[%clk 0:03:00.3]} 5. Bg5 {[%clk 0:02:58.7]}
5... h6 {[%clk 0:03:00.1]} 6. Bxf6 {[%clk 0:02:56.5]} 6... Qxf6 {[%clk 0:03:01]}
7. e3 {[%clk 0:02:55]} 7... g6 {[%clk 0:03:01.3]} 8. Nd2 {[%clk 0:02:55]} 8...
Bg7 {[%clk 0:02:54.6]} 9. g3 {[%clk 0:02:54.9]} 9... O-O {[%clk 0:02:40.5]} 10.
Bg2 {[%clk 0:02:52.6]} 10... Nd7 {[%clk 0:02:06.3]} 11. O-O {[%clk 0:02:51.8]}
11... Qe7 {[%clk 0:02:05]} 12. Qb3 {[%clk 0:02:48.4]} 12... Rd8 {[%clk
0:01:44.2]} 13. Rac1 {[%clk 0:02:39]} 13... Nb6 {[%clk 0:01:43.3]} 14. cxd5
{[%clk 0:02:03.8]} 14... exd5 {[%clk 0:01:41.4]} 15. Rfe1 {[%clk 0:01:58.1]}
15... Be6 {[%clk 0:01:39.7]} 16. Na4 {[%clk 0:01:47.6]} 16... Nxa4 {[%clk
0:01:34.3]} 17. Qxa4 {[%clk 0:01:48.5]} 17... h5 {[%clk 0:01:33.7]} 18. h4
{[%clk 0:01:43.9]} 18... Re8 {[%clk 0:01:22.9]} 19. b4 {[%clk 0:01:38.8]} 19...
a6 {[%clk 0:01:18.8]} 20. Qb3 {[%clk 0:01:38.4]} 20... Bg4 {[%clk 0:01:09.8]}
21. a4 {[%clk 0:01:30.7]} 21... Bf8 {[%clk 0:00:42.8]} 22. Rb1 {[%clk
0:01:26.1]} 22... g5 {[%clk 0:00:35.6]} 23. e4 {[%clk 0:01:07.9]} 23... gxh4
{[%clk 0:00:31.4]} 24. exd5 {[%clk 0:01:08]} 24... Qxe1+ {[%clk 0:00:22.2]} 25.
Rxe1 {[%clk 0:01:07.5]} 25... Rxe1+ {[%clk 0:00:23.1]} 26. Kh2 {[%clk
0:01:08.2]} 26... Re2 {[%clk 0:00:21.3]} 27. Ne4 {[%clk 0:01:05.5]} 27... Kg7
{[%clk 0:00:12.8]} 28. dxc6 {[%clk 0:00:30.4]} 28... bxc6 {[%clk 0:00:11.9]} 29.
Qd3 {[%clk 0:00:28.1]} 29... Re8 {[%clk 0:00:10]} 30. f3 {[%clk 0:00:26.2]}
30... R8xe4 {[%clk 0:00:10]} 31. fxg4 {[%clk 0:00:17.9]} 31... hxg3+ {[%clk
0:00:07.8]} 32. Kh3 {[%clk 0:00:16.8]} 32... hxg4+ {[%clk 0:00:07.6]} 33. Kh4
{[%clk 0:00:16.9]} 33... Be7+ {[%clk 0:00:07.7]} 34. Kh5 {[%clk 0:00:16.8]}
34... Re6 {[%clk 0:00:07.2]} 35. Kxg4 {[%clk 0:00:11.3]} 35... Rxg2 {[%clk
0:00:06.6]} 36. Qf5 {[%clk 0:00:09.2]} 36... Rg6+ {[%clk 0:00:06.5]} 0-1

[Event "*** SCC Grand Prix: Titled Tuesday Blitz"]
[Site "Chess.com"]
[Date "2020.06.23"]
[Round "2"]
[White "letsgoband"]
[Black "Vaathi_Coming"]
[Result "0-1"]
[WhiteElo "2552"]
[BlackElo "2852"]
[TimeControl "180+1"]
[EndTime "10:18:39 PDT"]
[Termination "Vaathi_Coming won by resignation"]

1. e4 {[%clk 0:03:00.8]} 1... c5 {[%clk 0:02:57.4]} 2. Nf3 {[%clk 0:03:01.1]}
2... e6 {[%clk 0:02:56.4]} 3. Nc3 {[%clk 0:03:00.5]} 3... d6 {[%clk 0:02:55.1]}
4. d4 {[%clk 0:03:00.7]} 4... cxd4 {[%clk 0:02:55.4]} 5. Nxd4 {[%clk 0:03:01.6]}
5... Nf6 {[%clk 0:02:55.9]} 6. g3 {[%clk 0:03:02.1]} 6... Bd7 {[%clk 0:02:54.8]}
7. Bg2 {[%clk 0:03:02.4]} 7... Nc6 {[%clk 0:02:55.2]} 8. O-O {[%clk 0:03:01.8]}
8... a6 {[%clk 0:02:49.2]} 9. Be3 {[%clk 0:02:56.7]} 9... Be7 {[%clk 0:02:48.2]}
10. h3 {[%clk 0:02:52.7]} 10... O-O {[%clk 0:02:48]} 11. Nxc6 {[%clk 0:02:46]}
11... Bxc6 {[%clk 0:02:47.8]} 12. a4 {[%clk 0:02:35.2]} 12... Qc7 {[%clk
0:02:16.4]} 13. a5 {[%clk 0:02:29.3]} 13... Rac8 {[%clk 0:02:16]} 14. Qd2 {[%clk
0:02:25.4]} 14... Nd7 {[%clk 0:02:11.9]} 15. Rfd1 {[%clk 0:02:24.8]} 15... Ne5
{[%clk 0:02:11.4]} 16. Bb6 {[%clk 0:02:18.6]} 16... Qb8 {[%clk 0:02:08.9]} 17.
b3 {[%clk 0:02:18.4]} 17... f5 {[%clk 0:01:42.4]} 18. f4 {[%clk 0:02:10.9]}
18... Nd7 {[%clk 0:01:42.3]} 19. Be3 {[%clk 0:02:03.8]} 19... Qc7 {[%clk
0:01:13.5]} 20. Nd5 {[%clk 0:01:57.1]} 20... Bxd5 {[%clk 0:00:47.5]} 21. exd5
{[%clk 0:01:58]} 21... e5 {[%clk 0:00:48.2]} 22. c4 {[%clk 0:01:55.6]} 22... Kh8
{[%clk 0:00:38.3]} 23. Rac1 {[%clk 0:01:53.8]} 23... Nc5 {[%clk 0:00:30.8]} 24.
Qa2 {[%clk 0:01:49.4]} 24... exf4 {[%clk 0:00:29.7]} 25. Bxf4 {[%clk 0:01:45.4]}
25... g5 {[%clk 0:00:29.5]} 26. Be3 {[%clk 0:01:42.3]} 26... f4 {[%clk
0:00:29.9]} 27. gxf4 {[%clk 0:01:23]} 27... gxf4 {[%clk 0:00:30.8]} 28. Bd4+
{[%clk 0:01:23.1]} 28... Bf6 {[%clk 0:00:31]} 29. b4 {[%clk 0:01:23.5]} 29...
Bxd4+ {[%clk 0:00:26.1]} 30. Rxd4 {[%clk 0:01:24.4]} 30... Qg7 {[%clk
0:00:26.3]} 31. Rd2 {[%clk 0:01:16.7]} 31... Ne4 {[%clk 0:00:19.6]} 32. Re2
{[%clk 0:01:10.1]} 32... Nc3 {[%clk 0:00:19.8]} 33. Rxc3 {[%clk 0:01:01.9]}
33... Qxc3 {[%clk 0:00:20.7]} 34. Re7 {[%clk 0:00:46.5]} 34... Rce8 {[%clk
0:00:19.1]} 35. Qe2 {[%clk 0:00:41.9]} 35... Rxe7 {[%clk 0:00:18.7]} 36. Qxe7
{[%clk 0:00:42.8]} 36... Qe3+ {[%clk 0:00:19]} 37. Qxe3 {[%clk 0:00:41.7]} 37...
fxe3 {[%clk 0:00:19.9]} 38. Bf1 {[%clk 0:00:41.1]} 38... Rf2 {[%clk 0:00:18.9]}
39. c5 {[%clk 0:00:40]} 39... dxc5 {[%clk 0:00:15.7]} 40. bxc5 {[%clk
0:00:40.9]} 40... Rd2 {[%clk 0:00:15.9]} 41. Bc4 {[%clk 0:00:40.4]} 41... Rd4
{[%clk 0:00:13.9]} 42. Bb3 {[%clk 0:00:39.2]} 42... Rb4 {[%clk 0:00:11.7]} 43.
Ba2 {[%clk 0:00:37.8]} 43... Rf4 {[%clk 0:00:10.8]} 0-1

[Event "*** SCC Grand Prix: Titled Tuesday Blitz"]
[Site "Chess.com"]
[Date "2020.06.23"]
[Round "2"]
[White "Camels1981"]
[Black "WildTricks"]
[Result "1-0"]
[WhiteElo "2319"]
[BlackElo "2492"]
[TimeControl "180+1"]
[EndTime "10:18:39 PDT"]
[Termination "Camels1981 won by resignation"]

1. e4 {[%clk 0:03:00.9]} 1... c5 {[%clk 0:03:00.2]} 2. Nf3 {[%clk 0:03:00.3]}
2... d6 {[%clk 0:03:00.7]} 3. d4 {[%clk 0:03:00.1]} 3... cxd4 {[%clk 0:03:01.1]}
4. Nxd4 {[%clk 0:03:01]} 4... Nf6 {[%clk 0:03:01.8]} 5. Nc3 {[%clk 0:02:58.3]}
5... a6 {[%clk 0:03:02.2]} 6. Bc4 {[%clk 0:02:57.1]} 6... e6 {[%clk 0:03:01.7]}
7. Bb3 {[%clk 0:02:53.6]} 7... Be7 {[%clk 0:03:01.7]} 8. O-O {[%clk 0:02:52.2]}
8... O-O {[%clk 0:03:00.8]} 9. Be3 {[%clk 0:02:48.7]} 9... b5 {[%clk 0:02:58.6]}
10. a3 {[%clk 0:02:47.7]} 10... Bb7 {[%clk 0:02:58.2]} 11. f3 {[%clk 0:02:47.1]}
11... Nbd7 {[%clk 0:02:58.2]} 12. Qe1 {[%clk 0:02:07.5]} 12... Rc8 {[%clk
0:02:54.3]} 13. Rd1 {[%clk 0:02:05.1]} 13... Qc7 {[%clk 0:02:42.3]} 14. Qg3
{[%clk 0:02:04.1]} 14... Rfd8 {[%clk 0:02:37]} 15. Bxe6 {[%clk 0:01:57.2]} 15...
fxe6 {[%clk 0:02:26]} 16. Nxe6 {[%clk 0:01:56.7]} 16... Nh5 {[%clk 0:02:26.5]}
17. Qh3 {[%clk 0:01:28.8]} 17... Qc4 {[%clk 0:02:24]} 18. Nxd8 {[%clk 0:01:25]}
18... Bxd8 {[%clk 0:01:57.9]} 19. Qxh5 {[%clk 0:01:07.9]} 19... Nf6 {[%clk
0:01:54.2]} 20. Qf5 {[%clk 0:00:54.2]} 20... Ba5 {[%clk 0:01:47.9]} 21. Rxd6
{[%clk 0:00:47.7]} 21... Bxc3 {[%clk 0:01:19.6]} 22. bxc3 {[%clk 0:00:47]} 22...
Qxc3 {[%clk 0:01:14.9]} 23. Bd4 {[%clk 0:00:46]} 23... Qxc2 {[%clk 0:01:12.1]}
24. Rxf6 {[%clk 0:00:40.5]} 24... gxf6 {[%clk 0:01:07]} 25. Qe6+ {[%clk
0:00:38.6]} 25... Kf8 {[%clk 0:01:01.7]} 26. Qxf6+ {[%clk 0:00:38.4]} 26... Ke8
{[%clk 0:01:02]} 27. Qe6+ {[%clk 0:00:38]} 27... Kf8 {[%clk 0:00:58.4]} 28. Be3
{[%clk 0:00:28.7]} 28... Rc7 {[%clk 0:00:25.2]} 29. Bh6+ {[%clk 0:00:24.9]}
29... Rg7 {[%clk 0:00:25.7]} 30. Qf6+ {[%clk 0:00:23.7]} 30... Ke8 {[%clk
0:00:25.6]} 31. Bxg7 {[%clk 0:00:22.1]} 31... Qc5+ {[%clk 0:00:20.9]} 32. Kh1
{[%clk 0:00:21.2]} 32... Qxa3 {[%clk 0:00:20]} 33. Rd1 {[%clk 0:00:18.3]} 33...
Bd5 {[%clk 0:00:18.2]} 34. exd5 {[%clk 0:00:15.8]} 34... Kd7 {[%clk 0:00:18.4]}
35. Qc6+ {[%clk 0:00:14.5]} 35... Ke7 {[%clk 0:00:18.3]} 36. Qe6+ {[%clk
0:00:12.8]} 36... Kd8 {[%clk 0:00:18.3]} 37. Bf6+ {[%clk 0:00:12.8]} 37... Kc7
{[%clk 0:00:18.4]} 38. d6+ {[%clk 0:00:12.8]} 38... Kb6 {[%clk 0:00:17.7]} 39.
d7+ {[%clk 0:00:12.3]} 39... Ka5 {[%clk 0:00:18.2]} 40. d8=Q+ {[%clk 0:00:12.1]}
40... Ka4 {[%clk 0:00:18.5]} 41. Qd4+ {[%clk 0:00:12.2]} 1-0

[Event "*** SCC Grand Prix: Titled Tuesday Blitz"]
[Site "Chess.com"]
[Date "2020.06.23"]
[Round "2"]
[White "Airquake"]
[Black "Orest_Vovk"]
[Result "1-0"]
[WhiteElo "2669"]
[BlackElo "2397"]
[TimeControl "180+1"]
[EndTime "10:18:41 PDT"]
[Termination "Airquake won by resignation"]

1. e4 {[%clk 0:03:00.9]} 1... g5 {[%clk 0:02:56.8]} 2. d4 {[%clk 0:02:59.1]}
2... g4 {[%clk 0:02:56.6]} 3. Qxg4 {[%clk 0:02:55.2]} 3... d5 {[%clk 0:02:56.6]}
4. Qe2 {[%clk 0:02:50.2]} 4... dxe4 {[%clk 0:02:56.5]} 5. Qxe4 {[%clk
0:02:47.8]} 5... Nf6 {[%clk 0:02:56.4]} 6. Qd3 {[%clk 0:02:48]} 6... Nc6 {[%clk
0:02:56.4]} 7. Nf3 {[%clk 0:02:39.5]} 7... Bg4 {[%clk 0:02:55.5]} 8. c3 {[%clk
0:02:30.5]} 8... Qd5 {[%clk 0:02:54.8]} 9. Bf4 {[%clk 0:02:15.9]} 9... O-O-O
{[%clk 0:02:52.2]} 10. Ne5 {[%clk 0:02:08.3]} 10... Nxe5 {[%clk 0:02:32.6]} 11.
Bxe5 {[%clk 0:02:06.5]} 11... Rg8 {[%clk 0:02:28.6]} 12. Nd2 {[%clk 0:02:03.2]}
12... Nd7 {[%clk 0:02:17.8]} 13. Bg3 {[%clk 0:01:56.8]} 13... e5 {[%clk
0:02:12.9]} 14. f3 {[%clk 0:01:19.8]} 14... Bh5 {[%clk 0:01:55.7]} 15. Qe4
{[%clk 0:01:09.1]} 15... Qxe4+ {[%clk 0:01:45.6]} 16. fxe4 {[%clk 0:01:08.9]}
16... exd4 {[%clk 0:01:43.3]} 17. cxd4 {[%clk 0:01:09.8]} 17... Nb6 {[%clk
0:01:29]} 18. Rc1 {[%clk 0:01:04.7]} 18... Rxd4 {[%clk 0:00:59.5]} 19. Bxc7
{[%clk 0:00:55.1]} 19... Kd7 {[%clk 0:00:46.8]} 20. Bb5+ {[%clk 0:00:50.8]}
20... Ke6 {[%clk 0:00:45.4]} 21. Bxb6 {[%clk 0:00:40.1]} 21... axb6 {[%clk
0:00:40.8]} 22. Bc4+ {[%clk 0:00:40.4]} 22... Ke5 {[%clk 0:00:32.9]} 23. Bd5
{[%clk 0:00:38.8]} 23... Bb4 {[%clk 0:00:26.9]} 24. O-O {[%clk 0:00:29.1]} 24...
Rxd2 {[%clk 0:00:25]} 25. Rf5+ {[%clk 0:00:28]} 25... Kd4 {[%clk 0:00:20.5]} 26.
Rxh5 {[%clk 0:00:28]} 26... Rgxg2+ {[%clk 0:00:19.2]} 27. Kh1 {[%clk 0:00:28.6]}
27... Rge2 {[%clk 0:00:12.4]} 28. Bxb7 {[%clk 0:00:25.7]} 28... Rxb2 {[%clk
0:00:10.5]} 29. Ba6 {[%clk 0:00:22.8]} 29... Red2 {[%clk 0:00:08.8]} 30. Rc4+
{[%clk 0:00:21.5]} 30... Ke3 {[%clk 0:00:08.3]} 31. Rh3+ {[%clk 0:00:22.1]}
31... Kf2 {[%clk 0:00:06.7]} 32. Rc1 {[%clk 0:00:22.4]} 32... Re2 {[%clk
0:00:02.2]} 33. Bxe2 {[%clk 0:00:21.6]} 33... Rxe2 {[%clk 0:00:01]} 34. Rg1
{[%clk 0:00:21.6]} 34... Bc5 {[%clk 0:00:01.9]} 35. Rg2+ {[%clk 0:00:21.6]}
35... Ke1 {[%clk 0:00:02.7]} 36. Rxe2+ {[%clk 0:00:22.5]} 36... Kxe2 {[%clk
0:00:03.6]} 37. Rxh7 {[%clk 0:00:23]} 37... Ke3 {[%clk 0:00:04.3]} 38. Rxf7
{[%clk 0:00:23.5]} 38... Kxe4 {[%clk 0:00:05.2]} 39. h4 {[%clk 0:00:24]} 39...
Kd3 {[%clk 0:00:05.8]} 40. h5 {[%clk 0:00:24.5]} 40... Kc2 {[%clk 0:00:06.4]}
41. h6 {[%clk 0:00:24.8]} 41... Kb2 {[%clk 0:00:06.2]} 42. h7 {[%clk 0:00:24.9]}
42... Bd4 {[%clk 0:00:06.4]} 43. Rb7 {[%clk 0:00:24.9]} 43... Kxa2 {[%clk
0:00:06.6]} 44. Rxb6 {[%clk 0:00:25.2]} 1-0

[Event "*** SCC Grand Prix: Titled Tuesday Blitz"]
[Site "Chess.com"]
[Date "2020.06.23"]
[Round "2"]
[White "Loveforever_Pepi"]
[Black "Poghosyan_Suren"]
[Result "0-1"]
[WhiteElo "2186"]
[BlackElo "2429"]
[TimeControl "180+1"]
[EndTime "10:18:41 PDT"]
[Termination "Poghosyan_Suren won on time"]

1. e4 {[%clk 0:03:00.9]} 1... e6 {[%clk 0:02:55.7]} 2. d4 {[%clk 0:02:59.6]}
2... d5 {[%clk 0:02:53.5]} 3. Nd2 {[%clk 0:02:59.3]} 3... Nc6 {[%clk 0:02:45.6]}
4. c3 {[%clk 0:02:55.9]} 4... e5 {[%clk 0:02:33.2]} 5. dxe5 {[%clk 0:02:42.1]}
5... dxe4 {[%clk 0:02:32.9]} 6. Nxe4 {[%clk 0:02:34.7]} 6... Qxd1+ {[%clk
0:02:33.8]} 7. Kxd1 {[%clk 0:02:34.1]} 7... Nxe5 {[%clk 0:02:34.7]} 8. Bf4
{[%clk 0:02:33.6]} 8... f6 {[%clk 0:02:24.6]} 9. Bxe5 {[%clk 0:02:32.5]} 9...
fxe5 {[%clk 0:02:25.5]} 10. Nf3 {[%clk 0:02:30.3]} 10... Nf6 {[%clk 0:02:25.6]}
11. Bd3 {[%clk 0:02:28.3]} 11... Bg4 {[%clk 0:02:24.1]} 12. Ke2 {[%clk
0:02:13.4]} 12... O-O-O {[%clk 0:02:23]} 13. Rad1 {[%clk 0:02:01.5]} 13... Nd5
{[%clk 0:02:20.7]} 14. g3 {[%clk 0:01:52.2]} 14... Ba3 {[%clk 0:02:01.2]} 15.
bxa3 {[%clk 0:01:47.7]} 15... Rhf8 {[%clk 0:02:00.7]} 16. Nd2 {[%clk 0:01:45]}
16... Nxc3+ {[%clk 0:02:00.1]} 17. Ke3 {[%clk 0:01:36.7]} 17... Nxd1+ {[%clk
0:01:45.5]} 18. Rxd1 {[%clk 0:01:33]} 18... Rxd3+ {[%clk 0:01:45.3]} 19. Kxd3
{[%clk 0:01:32.5]} 19... Bxf3 {[%clk 0:01:45.6]} 20. Re1 {[%clk 0:01:26]} 20...
Bc6 {[%clk 0:01:34.8]} 21. Rxe5 {[%clk 0:01:25.5]} 21... Rxf2 {[%clk 0:01:34]}
22. Re7 {[%clk 0:01:25.4]} 22... Rxh2 {[%clk 0:01:30.1]} 23. Rxg7 {[%clk
0:01:24.8]} 23... b5 {[%clk 0:01:26.8]} 24. Kc3 {[%clk 0:01:06.5]} 24... h5
{[%clk 0:01:14.6]} 25. Nb3 {[%clk 0:01:04.1]} 25... Rg2 {[%clk 0:00:55.7]} 26.
Nc5 {[%clk 0:01:00.9]} 26... Re2 {[%clk 0:00:39.5]} 27. Na6 {[%clk 0:00:29.1]}
27... Bd7 {[%clk 0:00:37.8]} 28. Nc5 {[%clk 0:00:28.8]} 28... Be8 {[%clk
0:00:23.7]} 29. Kd3 {[%clk 0:00:21.3]} 29... Re5 {[%clk 0:00:22]} 30. Kd4 {[%clk
0:00:20.5]} 30... Re1 {[%clk 0:00:20.9]} 31. Na6 {[%clk 0:00:14]} 31... Rd1+
{[%clk 0:00:20.5]} 32. Kc3 {[%clk 0:00:10.2]} 32... Rc1+ {[%clk 0:00:19.7]} 33.
Kb2 {[%clk 0:00:10]} 33... Rc6 {[%clk 0:00:20.2]} 34. Nb4 {[%clk 0:00:09.6]}
34... Rg6 {[%clk 0:00:20]} 35. Rxg6 {[%clk 0:00:02.9]} 35... Bxg6 {[%clk
0:00:19.7]} 36. Nc6 {[%clk 0:00:03.4]} 36... Kb7 {[%clk 0:00:15.3]} 37. Ne5
{[%clk 0:00:02.9]} 37... Be8 {[%clk 0:00:15.2]} 0-1

[Event "*** SCC Grand Prix: Titled Tuesday Blitz"]
[Site "Chess.com"]
[Date "2020.06.23"]
[Round "2"]
[White "Stormeman100100"]
[Black "DishonorOnYourCow"]
[Result "0-1"]
[WhiteElo "2484"]
[BlackElo "2318"]
[TimeControl "180+1"]
[EndTime "10:18:43 PDT"]
[Termination "DishonorOnYourCow won by resignation"]

1. e4 {[%clk 0:03:00.9]} 1... c5 {[%clk 0:02:58.1]} 2. Nf3 {[%clk 0:02:57.3]}
2... d6 {[%clk 0:02:57.3]} 3. d4 {[%clk 0:02:52.1]} 3... cxd4 {[%clk 0:02:53.7]}
4. Nxd4 {[%clk 0:02:48.1]} 4... Nf6 {[%clk 0:02:54.6]} 5. Nc3 {[%clk 0:02:46.5]}
5... a5 {[%clk 0:02:53.2]} 6. Bb5+ {[%clk 0:02:19.3]} 6... Nbd7 {[%clk
0:02:49.3]} 7. Bg5 {[%clk 0:02:18.6]} 7... e6 {[%clk 0:02:40.3]} 8. f4 {[%clk
0:02:13.4]} 8... Be7 {[%clk 0:02:34.2]} 9. Qf3 {[%clk 0:02:10.3]} 9... O-O
{[%clk 0:02:19.9]} 10. O-O-O {[%clk 0:02:08.6]} 10... Qb6 {[%clk 0:02:10.1]} 11.
g4 {[%clk 0:01:52]} 11... Qc5 {[%clk 0:01:47.7]} 12. Kb1 {[%clk 0:01:39.9]}
12... Nb6 {[%clk 0:01:37.1]} 13. Rhe1 {[%clk 0:01:30.2]} 13... Bd7 {[%clk
0:01:35.8]} 14. Bxd7 {[%clk 0:01:27.7]} 14... Nbxd7 {[%clk 0:01:35.3]} 15. Ndb5
{[%clk 0:01:13]} 15... Rfc8 {[%clk 0:01:25]} 16. Qg3 {[%clk 0:00:56]} 16... a4
{[%clk 0:01:13.2]} 17. e5 {[%clk 0:00:53.4]} 17... dxe5 {[%clk 0:01:08.6]} 18.
fxe5 {[%clk 0:00:52.9]} 18... Nd5 {[%clk 0:01:01.7]} 19. Bxe7 {[%clk 0:00:49]}
19... Qxe7 {[%clk 0:01:01.3]} 20. Nxd5 {[%clk 0:00:47.3]} 20... exd5 {[%clk
0:01:01.5]} 21. Rxd5 {[%clk 0:00:47.3]} 21... Nb6 {[%clk 0:00:49.1]} 22. Rd4
{[%clk 0:00:39.8]} 22... Qc5 {[%clk 0:00:47.9]} 23. Qd3 {[%clk 0:00:37.4]} 23...
Nc4 {[%clk 0:00:39.1]} 24. e6 {[%clk 0:00:10.3]} 24... fxe6 {[%clk 0:00:27.1]}
25. Nd6 {[%clk 0:00:08.7]} 25... Qb4 {[%clk 0:00:20.1]} 26. Nxc4 {[%clk
0:00:07.8]} 26... Qxe1+ {[%clk 0:00:20.1]} 27. Qd1 {[%clk 0:00:07.2]} 27...
Qxd1+ {[%clk 0:00:20.6]} 28. Rxd1 {[%clk 0:00:07.6]} 28... Rxc4 {[%clk
0:00:21.2]} 29. b3 {[%clk 0:00:08.5]} 29... axb3 {[%clk 0:00:21]} 30. axb3
{[%clk 0:00:09.4]} 30... Rxg4 {[%clk 0:00:21.4]} 31. Kb2 {[%clk 0:00:10.3]}
31... Rg2 {[%clk 0:00:21.1]} 32. Rd7 {[%clk 0:00:10.3]} 32... Rc8 {[%clk
0:00:20.5]} 33. Rxb7 {[%clk 0:00:09.8]} 33... Rcxc2+ {[%clk 0:00:20.5]} 34. Ka3
{[%clk 0:00:10.7]} 34... Rxh2 {[%clk 0:00:21.1]} 35. b4 {[%clk 0:00:10.2]} 35...
Ra2+ {[%clk 0:00:20.9]} 36. Kb3 {[%clk 0:00:10.2]} 36... h5 {[%clk 0:00:20.9]}
37. b5 {[%clk 0:00:10]} 37... Rhb2+ {[%clk 0:00:20.7]} 38. Kc3 {[%clk
0:00:09.9]} 38... h4 {[%clk 0:00:21]} 39. b6 {[%clk 0:00:10.1]} 39... h3 {[%clk
0:00:21.2]} 40. Rb8+ {[%clk 0:00:08.3]} 40... Kh7 {[%clk 0:00:21.3]} 41. b7
{[%clk 0:00:08.9]} 41... h2 {[%clk 0:00:21.5]} 42. Ra8 {[%clk 0:00:07.5]} 42...
Rxb7 {[%clk 0:00:15.5]} 43. Rxa2 {[%clk 0:00:06.8]} 43... h1=Q {[%clk
0:00:15.7]} 0-1